fUSD/lending_fUSD_20260111
["ID","MTS","AMOUNT","RATE_DAILY","PERIOD"]
[401292463,1768110640758,-500.0,0.00017895,2]
[401292464,1768110640767,-556.14931484,0.00017895,2]
[401292465,1768110640777,-500.0,0.00017895,2]
[401292466,1768110640786,-161.61997633,0.00017895,2]
[401292467,1768110640795,-252.88906652,0.00017895,2]
[401292468,1768110640805,-417.39810937,0.00017895,2]
[401292469,1768110640815,-560.86183395,0.00017895,2]
[401292470,1768110640824,-560.69686041,0.00017895,2]
[401292471,1768110640833,-500.0,0.00017895,2]
[401292472,1768110640843,-500.0,0.00017895,2]
[401292473,1768110640852,-211.85260836,0.00017895,2]
[401292474,1768110640862,-481.01531836,0.00017895,2]
[401292475,1768110640871,-649.9282328,0.00017895,2]
[401292476,1768110640880,-500.0,0.00017895,2]
[401292477,1768110640890,-305.58786161,0.00017895,2]
[401292478,1768110640900,-500.0,0.00017895,2]
[401292479,1768110640909,-370.17332914,0.00017895,2]
[401292480,1768110640919,-1000000.0,0.00017896,2]
[401292481,1768110640929,-225.79132056,0.00017897,2]
[401292482,1768110640938,-2379.47136207,0.000179,2]
[401292483,1768110640948,-177.83554054,0.000179,2]
[401292484,1768110640957,-4332.47251881,0.000179,2]
[401292485,1768110640966,-361.83193555,0.000179,2]
[401292486,1768110640975,-383.73032144,0.000179,3]
[401292487,1768110640985,-500.0,0.00017973,2]
[401292488,1768110640995,-500.0,0.00017973,2]
[401292489,1768110641005,-500.0,0.00017973,2]
[401292490,1768110641014,-500.0,0.00017973,2]
[401292491,1768110641024,-500.0,0.00017973,2]
[401292492,1768110641034,-500.46406846,0.00017973,2]
[401292493,1768110641044,-150.0,0.00017973,2]
[401292494,1768110641054,-684.92602064,0.00017987,2]
[401292495,1768110641063,-684.92602064,0.0001799,2]
[401292496,1768110641073,-684.92602064,0.0001799,2]
[401292497,1768110641083,-385510.1021754,0.00017997,2]
[401292498,1768110641093,-2008.700644,0.00017997,2]
[401292499,1768110641102,-300.0,0.00017999,2]
[401292500,1768110641112,-666.0,0.00017999,2]
[401292501,1768110641122,-300.0,0.00017999,2]
[401292502,1768110641131,-666.0,0.00017999,2]
[401292503,1768110641141,-158.29808248,0.00018,2]
[401292504,1768110641150,-155.3577338,0.00018,2]
[401292505,1768110641159,-157.46483919,0.00018,2]
[401292506,1768110641168,-157.2132119,0.00018,2]
[401292507,1768110641177,-156.22128885,0.00018,2]
[401292508,1768110641188,-155.84220397,0.00018,2]
[401292509,1768110641199,-2429550.03674828,0.00018,2]
[401292514,1768110642671,-1.7e-07,0.00018,2]
[401292515,1768110643150,-13131.07939292,0.00018,2]
[401292516,1768110645360,-14150.24096666,0.00018,2]
[401292517,1768110645371,-266.80887864,0.00018,2]
[401292518,1768110645423,-554.61578139,0.00018,2]
[401292519,1768110645434,-659.26245641,0.00018,2]
[401292520,1768110645446,-5210.14308199,0.00018,2]
[401292521,1768110645457,-593.82396974,0.00018,2]
[401292522,1768110645535,-3923.76660988,0.00018,2]
[401292523,1768110645592,-4022.57045668,0.00018,2]
[401292524,1768110645604,-446.54033922,0.00018,2]
[401292525,1768110645615,-547.44,0.00018,2]
[401292526,1768110645627,-1089.88117537,0.00018,2]
[401292533,1768110702706,-500.0,0.00017073,2]
[401292534,1768110702730,-104.88782211,0.00017373,2]
[401292535,1768110705862,-46.11217789,0.00017373,2]
[401292536,1768110705887,-151.0,0.00017373,2]
[401292537,1768110705920,-38.44339648,0.00017389,2]
[401292538,1768110707531,-112.55660352,0.00017389,2]
[401292539,1768110707558,-151.0,0.00017389,2]
[401292540,1768110707585,-83.79795127,0.00017406,2]
[401292541,1768110711153,-67.20204873,0.00017406,2]
[401292542,1768110711177,-85.44339648,0.00017406,2]
[401292543,1768110715344,-151.0,0.00017322,2]
[401292544,1768110715366,-0.91714626,0.0001736,2]
[401292545,1768110718075,-150.08285374,0.0001736,2]
[401292546,1768110718097,-65.55660352,0.00017406,2]
[401292547,1768110718119,-98.77924046,0.00017437,2]
[401292548,1768110748433,-151.0,0.00017351,2]
[401292549,1768110748456,-151.0,0.00017351,2]
[401292550,1768110748477,-33.33874534,0.000175,2]
[401292551,1768110751323,-452.30848078,0.000175,2]
[401292552,1768110753973,-265.46135553,0.000175,2]
[401292553,1768110756587,-163.43138367,0.000175,2]
[401292554,1768110759902,-431.54288842,0.000175,2]
[401292555,1768110768412,-262.17148252,0.000175,2]
[401292556,1768110772213,-218.10019838,0.000175,2]
[401292557,1768110807777,-300.0,0.00017073,2]
[401292558,1768110813760,-200.0,0.00017073,2]
[401292559,1768110813781,-116.66,0.000175,2]
[401292560,1768110815460,-56.98546536,0.000175,2]
[401292561,1768110815482,-107.54411606,0.00017621,2]
[401292562,1768110818653,-206.13,0.00017621,2]
[401292563,1768110821409,-216.04641813,0.00017621,2]
[401292564,1768110825156,-301.02110693,0.00017621,2]
[401292565,1768110838258,-169.25835888,0.00017621,2]
[401292566,1768110838284,-94.49455944,0.0001764,2]
[401292567,1768110839757,-471.30655223,0.0001764,2]
[401292568,1768110841712,-296.29676817,0.0001764,2]
[401292570,1768110882771,-199.03312016,0.0001764,2]
[401292571,1768110882794,-65.58526894,0.00017754,2]
[401292572,1768110884938,-173.41473106,0.00017754,2]
[401292573,1768110884962,-32.87306434,0.00017754,2]
[401292574,1768110886540,-232.67783146,0.00017754,2]
[401292575,1768110889162,-44.7627056,0.00017754,2]
[401292576,1768110889185,-129.73466187,0.00017754,2]
[401292577,1768110890808,-370.26533813,0.00017754,2]
[401292578,1768110890835,-60.55855737,0.00017754,2]
[401292579,1768110894518,-160.3090297,0.00017754,2]
[401292580,1768110896071,-140.19944817,0.00017754,2]
[401292581,1768110896095,-59.80055183,0.00017754,2]
[401292582,1768110897596,-420.67651575,0.00017754,2]
[401292583,1768110899024,-19.52293242,0.00017754,2]
[401292584,1768110899047,-283.69046384,0.00017754,2]
[401292585,1768110903399,-216.42967347,0.00017753,2]
[401292586,1768110905612,-83.57032653,0.00017753,2]
[401292587,1768110905637,-127.02019234,0.00017753,2]
[401292588,1768110907858,-302.25999983,0.00017753,2]
[401292589,1768110910548,-200.0,0.00017753,2]
[401292590,1768110913550,-296.53313902,0.00017753,2]
[401292591,1768110914989,-274.18666881,0.00017753,2]
[401292592,1768110915013,-131.98007857,0.00017754,2]
[401292593,1768110917713,-84.32945759,0.00017754,2]
[401292594,1768110917738,-422.83347448,0.00017754,2]
[401292595,1768110917775,-35.98824633,0.00017754,2]
[401292596,1768110919820,-226.05225167,0.00017754,2]
[401292597,1768110921348,-181.83775549,0.00017073,2]
[401292598,1768110923487,-188.86471918,0.00017073,2]
[401292599,1768110925620,-129.29752533,0.00017073,2]
[401292600,1768110925644,-120.70247467,0.00017621,2]
[401292601,1768110929336,-299.4769934,0.00017621,2]
[401292602,1768110942836,-93.95111919,0.00017621,2]
[401292603,1768110942865,-98.58755839,0.00017754,2]
[401292604,1768110945328,-139.37194361,0.00017754,2]
[401292605,1768110945354,-41.1242435,0.00017754,2]
[401292606,1768110947623,-397.82381289,0.00017754,2]
[401292607,1768110958457,-239.62801053,0.00017665,2]
[401292608,1768110960074,-413.62305256,0.00017665,2]
[401292609,1768110987967,-180.43689991,0.00017665,2]
[401292610,1768110987995,-61.05194361,0.00017754,2]
[401292611,1768110988024,-3.94603473,0.00017754,2]
[401292612,1768110990466,-300.0,0.00017754,2]
[401292613,1768110992033,-196.05396527,0.00017754,2]
[401292614,1768110992059,-129.47167717,0.00017754,2]
[401292615,1768110995066,-202.37576797,0.00017754,2]
[401292616,1768110997816,-168.15255486,0.00017754,2]
[401292617,1768110997843,-54.0349362,0.00017754,2]
[401292618,1768111000257,-240.80546981,0.00017754,2]
[401292619,1768111004200,-205.15959399,0.00017754,2]
[401292620,1768111004227,-91.21239548,0.00017754,2]
[401292622,1768111212748,-160.49067089,0.00014034,2]
[401292624,1768111629311,151.28,0.00025178,120]
[401292628,1768111831544,-8.41932911,0.00014034,2]
[401292630,1768111831554,-1483.11811431,0.00016119,2]
[401292632,1768111831601,-413.58312469,0.00016119,2]
[401292633,1768111831611,-15.24693954,0.000162,2]
[401292634,1768111831660,-142.21789965,0.000162,2]
[401292635,1768111831670,-155.3577338,0.000162,2]
[401292636,1768111831679,-158.29808248,0.000162,2]
[401292637,1768111831692,-156.22128885,0.000162,2]
[401292638,1768111831702,-157.2132119,0.000162,2]
[401292639,1768111831711,-155.84220397,0.000162,2]
[401292640,1768111831720,-151.0,0.00016324,2]
[401292641,1768111831731,-151.0,0.00016324,2]
[401292642,1768111831740,-151.0,0.00016324,2]
[401292643,1768111831750,-151.0,0.00016324,2]
[401292644,1768111831759,-151.0,0.00016332,2]
[401292645,1768111831769,-151.0,0.00016332,2]
[401292646,1768111831779,-130.79312143,0.00016518,2]
[401292647,1768111831805,-119.20687857,0.00016518,2]
[401292648,1768111831815,-911.98,0.00016592,2]
[401292649,1768111831825,-717.04053342,0.00016729,2]
[401292651,1768111831837,-500.00522945,0.00016729,2]
[401292662,1768111837745,-151.0,0.00016323,2]
[401292663,1768111837756,-151.0,0.00016395,2]
[401292664,1768111837766,-17420.22423713,0.00016729,2]
[401292665,1768111837776,-1852.42,0.00016755,2]
[401292666,1768111837786,-187.0,0.00016766,2]
[401292667,1768111837807,-5835.54,0.00016767,2]
[401292668,1768111837825,-151.28,0.00016786,2]
[401292669,1768111837834,-210.49,0.00016849,2]
[401292670,1768111837844,-200.0,0.00016865,2]
[401292671,1768111837854,-1026.2963,0.00017532,2]
[401292672,1768111837864,-713.8414087,0.00017574,2]
[401292673,1768111837874,-713.84140862,0.0001761,2]
[401292674,1768111837887,-500.0,0.00017631,2]
[401292675,1768111837903,-500.0,0.00017631,2]
[401292676,1768111837915,-500.0,0.00017631,2]
[401292677,1768111837925,-525.63838799,0.00017631,2]
[401292678,1768111837936,-500.0,0.00017631,2]
[401292679,1768111837946,-500.0,0.00017631,2]
[401292680,1768111837955,-500.0,0.00017631,2]
[401292681,1768111837965,-500.0,0.00017631,2]
[401292682,1768111837976,-500.0,0.00017631,2]
[401292684,1768111837985,-500.0,0.00017631,2]
[401292686,1768111837998,-500.0,0.00017631,2]
[401292688,1768111838007,-500.0,0.00017631,2]
[401292689,1768111838016,-500.0,0.00017631,2]
[401292691,1768111838025,-500.0,0.00017631,2]
[401292692,1768111838036,-576.5562561,0.00017631,2]
[401292694,1768111838046,-415.95734668,0.00017631,2]
[401292696,1768111838056,-500.0,0.00017631,2]
[401292698,1768111838066,-500.0,0.00017631,2]
[401292700,1768111838075,-500.0,0.00017631,2]
[401292702,1768111838085,-82654.5091022,0.00017632,2]
[401292704,1768111838094,-10157.0767688,0.00017632,2]
[401292707,1768111838104,-713.84140862,0.00017646,2]
[401292708,1768111838114,-212.3328,0.00017655,2]
[401292710,1768111838124,-500.0,0.00017672,2]
[401292713,1768111838134,-500.0,0.00017672,2]
[401292715,1768111838144,-500.0,0.00017672,2]
[401292717,1768111838153,-500.0,0.00017672,2]
[401292719,1768111838163,-275.63838799,0.00017672,2]
[401292721,1768111838172,-59467.5464531,0.00017674,2]
[401292723,1768111838181,-544.33,0.00017674,2]
[401292725,1768111838191,-200.0,0.00017678,2]
[401292727,1768111838200,-713.84140862,0.00017683,2]
[401292729,1768111838210,-10209.98515573,0.00017685,2]
[401292731,1768111838219,-1611.37703219,0.00017704,2]
[401292745,1768111839842,-281.649,0.00017704,2]
[401292746,1768111839953,-8124.21422665,0.00017704,2]
[401292747,1768111839963,-10209.98515566,0.00017709,2]
[401292748,1768111839973,-713.84140862,0.00017719,2]
[401292749,1768111839983,-10209.98515566,0.00017733,2]
[401292750,1768111839992,-151.0,0.00017744,2]
[401292751,1768111840002,-202.27919226,0.00017744,2]
[401292752,1768111840012,-151.0,0.00017754,2]
[401292753,1768111840021,-713.84140862,0.00017755,2]
[401292754,1768111840031,-10209.98515566,0.00017757,2]
[401292755,1768111840041,-10209.98515566,0.00017781,2]
[401292756,1768111840050,-210.49,0.00017785,2]
[401292757,1768111840059,-713.84140862,0.00017791,2]
[401292758,1768111840069,-1000.0,0.00017796,2]
[401292759,1768111840078,-10209.98515566,0.00017804,2]
[401292760,1768111840088,-713.84140862,0.00017828,2]
[401292761,1768111840097,-10209.98515566,0.00017828,2]
[401292762,1768111840106,-10209.98515566,0.00017852,2]
[401292763,1768111840116,-713.84140862,0.00017864,2]
[401292764,1768111840126,-10209.98515566,0.00017876,2]
[401292765,1768111840135,-169.89291339,0.000179,2]
[401292766,1768111840144,-10000.0,0.000179,2]
[401292767,1768111840153,-177.83554054,0.000179,2]
[401292768,1768111840163,-10209.98515566,0.000179,2]
[401292769,1768111840173,-4332.47251881,0.000179,2]
[401292771,1768111840183,-361.83193555,0.000179,2]
[401292773,1768111840193,-575.59548218,0.000179,3]
[401292775,1768111840202,-225.79132056,0.000179,2]
[401292776,1768111840211,-999.0,0.0001796,3]
[401292777,1768111840220,-500.0,0.00017973,2]
[401292778,1768111840230,-500.0,0.00017973,2]
[401292779,1768111840239,-618.7263034,0.00017973,2]
[401292780,1768111840248,-500.0,0.00017973,2]
[401292781,1768111840259,-500.46406846,0.00017973,2]
[401292782,1768111840268,-500.0,0.00017973,2]
[401292783,1768111840278,-501.25271617,0.00017973,2]
[401292784,1768111840288,-500.0,0.00017973,2]
[401292785,1768111840297,-500.0,0.00017973,2]
[401292786,1768111840307,-500.0,0.00017973,2]
[401292787,1768111840316,-181.18183049,0.00017973,2]
[401292788,1768111840325,-2008.700644,0.00017973,2]
[401292789,1768111840335,-150.0,0.00017973,2]
[401292790,1768111840344,-684.92602064,0.0001799,2]
[401292791,1768111840353,-684.92602064,0.0001799,2]
[401292792,1768111840363,-302855.5930733,0.00017999,2]
[401292793,1768111840372,-300.0,0.00017999,2]
[401292794,1768111840381,-683.01725036,0.00017999,2]
[401292795,1768111840390,-300.0,0.00017999,2]
[401292796,1768111840400,-666.0,0.00017999,2]
[401292797,1768111840409,-500.0,0.00017999,2]
[401292798,1768111840419,-252.74692466,0.00017999,2]
[401292799,1768111840428,-217.21952098,0.00017999,2]
[401292800,1768111840438,-500.0,0.00017999,2]
[401292801,1768111840447,-416.47780509,0.00017999,2]
[401292802,1768111840457,-1638029.2827111,0.00018,2]
[401292803,1768111840466,-102802.52776165,0.00018,2]
[401292804,1768111840475,-812254.56670849,0.00018,2]
[401292805,1768111842024,-1.7e-07,0.00018,2]
[401292815,1768111843631,-290.33199242,0.000179,2]
[401292816,1768111843692,-423.5094162,0.000179,2]
[401292817,1768111843702,-4102.08641916,0.00018,2]
[401292822,1768111845931,-785.30193007,0.00018,2]
[401292891,1768112667298,217.0,0.00014,2]
[401292910,1768113031759,-2536.75062507,0.00014999,2]
[401292912,1768113031770,-300.0,0.00015319,2]
[401292913,1768113031780,-8271.80811216,0.0001532,2]
[401292914,1768113031789,-5000.0,0.000162,5]
[401292915,1768113031799,-151.0,0.00016278,2]
[401292916,1768113031811,-151.0,0.00016278,2]
[401292917,1768113031821,-803.4081895,0.00016438,2]
[401292918,1768113031831,-3223.05,0.00016438,2]
[401292919,1768113031841,-166.66,0.00016441,2]
[401292920,1768113031852,-166.66,0.00016788,2]
[401292921,1768113031862,-166.66,0.00017134,2]
[401292922,1768113031872,-2074.12,0.00017266,2]
[401292923,1768113031882,-105225.6118,0.00017459,2]
[401292924,1768113031892,-166.66,0.0001748,2]
[401292925,1768113031902,-168.72517595,0.000175,2]
[401292926,1768113031972,-560.87669946,0.000175,2]
[401292927,1768113032036,-874.0,0.000175,2]
[401292930,1768113032286,-396.39812459,0.000175,2]
[401292931,1768113032304,-848.905,0.000175,2]
[401292932,1768113032313,-5356.17554673,0.00017559,2]
[401292933,1768113037860,-151.0,0.00016232,2]
[401292934,1768113037871,-151.0,0.00016232,2]
[401292935,1768113037883,-337.31888652,0.00017458,2]
[401292936,1768113037917,-149.77455627,0.00017458,2]
[401292937,1768113037927,-765.90724658,0.00017559,2]
[401292938,1768113037940,-9465.01389283,0.00017559,2]
[401292939,1768113037976,-2054.73981248,0.00017559,2]
[401292940,1768113037990,-426.61846658,0.00017559,2]
[401292941,1768113038004,-480.71237647,0.00017559,2]
[401292942,1768113038018,-1051.74850456,0.00017559,2]
[401292943,1768113038030,-713.27716413,0.00017559,2]
[401292944,1768113038048,-913.64,0.00017559,2]
[401292945,1768113038061,-10111.1220421,0.00017559,2]
[401292949,1768113039958,-19290.38494754,0.00017559,2]
[401292950,1768113039969,-1020.99851562,0.000178,2]
[401292951,1768113039979,-1878.058,0.000178,2]
[401292952,1768113039989,-1000.0,0.000178,2]
[401292953,1768113039999,-1000.0,0.000178,2]
[401292954,1768113040008,-197.994,0.000178,2]
[401292955,1768113040019,-1000.0,0.000178,2]
[401292956,1768113040028,-283.92,0.000178,2]
[401292957,1768113040038,-1020.99851556,0.00017811,2]
[401292958,1768113040049,-1020.99851556,0.00017822,2]
[401292959,1768113040060,-166.66,0.00017826,2]
[401292960,1768113040071,-1020.99851556,0.00017833,2]
[401292961,1768113040081,-1020.99851556,0.00017844,2]
[401292962,1768113040091,-1020.99851556,0.00017856,2]
[401292963,1768113040102,-1020.99851556,0.00017867,2]
[401292964,1768113040113,-1020.99851556,0.00017878,2]
[401292965,1768113040125,-1020.99851556,0.00017889,2]
[401292966,1768113040136,-621.7517,0.000179,2]
[401292967,1768113040147,-1020.99851556,0.000179,2]
[401292968,1768113040158,-533.50662158,0.000179,2]
[401292969,1768113040169,-575.59548218,0.000179,3]
[401292970,1768113040179,-4332.47251881,0.000179,2]
[401292971,1768113040190,-361.83193555,0.000179,2]
[401292972,1768113040200,-412.82616262,0.000179,2]
[401292973,1768113040210,-169.89291339,0.00017907,2]
[401292974,1768113040221,-150.0,0.00017919,2]
[401292975,1768113040231,-150.0,0.00017919,2]
[401292976,1768113040241,-500.0,0.00017919,2]
[401292977,1768113040251,-501.57832546,0.00017973,2]
[401292978,1768113040262,-500.0,0.00017973,2]
[401292979,1768113040272,-500.0,0.00017973,2]
[401292980,1768113040282,-500.0,0.00017973,2]
[401292981,1768113040293,-618.7263034,0.00017973,2]
[401292982,1768113040303,-500.0,0.00017973,2]
[401292983,1768113040313,-500.0,0.00017973,2]
[401292984,1768113040324,-500.0,0.00017973,2]
[401292985,1768113040335,-500.46406846,0.00017973,2]
[401292986,1768113040345,-500.0,0.00017973,2]
[401292987,1768113040356,-501.25271617,0.00017973,2]
[401292988,1768113040366,-225.65669469,0.00017973,2]
[401292989,1768113040377,-181.18183049,0.00017973,2]
[401292990,1768113040387,-150.0,0.00017973,2]
[401292991,1768113040398,-150.0,0.00017974,2]
[401292992,1768113040408,-551.91628871,0.00017974,2]
[401292993,1768113040419,-500.0,0.00017978,2]
[401292994,1768113040430,-684.92602064,0.0001799,2]
[401292995,1768113040440,-684.92602064,0.0001799,2]
[401292996,1768113040450,-684.92602064,0.0001799,2]
[401292997,1768113040460,-237922.4558273,0.00017996,2]
[401292998,1768113040470,-2008.7006441,0.00017996,2]
[401292999,1768113040481,-12404.08843338,0.00017996,2]
[401293000,1768113040500,-5945.50145145,0.00017996,2]
[401293002,1768113040512,-311.98467859,0.00017996,2]
[401293003,1768113040525,-524.9326699,0.00017996,2]
[401293004,1768113040542,-10229.70607684,0.00017996,2]
[401293005,1768113040560,-35516.92393594,0.00017996,2]
[401293006,1768113040573,-12750.0183053,0.00017996,2]
[401293007,1768113040584,-300.0,0.00017999,2]
[401293008,1768113040596,-500.0,0.00017999,2]
[401293009,1768113040607,-438.27608199,0.00017999,2]
[401293010,1768113040618,-369.53763456,0.00017999,2]
[401293011,1768113040629,-498.0204171,0.00017999,2]
[401293012,1768113040640,-500.0,0.00017999,2]
[401293013,1768113040650,-500.0,0.00017999,2]
[401293014,1768113040661,-526.84172012,0.00017999,2]
[401293015,1768113040681,-1511045.77134371,0.00018,2]
[401293016,1768113040692,-1332714.6247874,0.00018,2]
[401293017,1768113040714,-2838048.97756623,0.00018,2]
[401293403,1768113909712,161.13,8.776e-05,2]
[401293404,1768113909899,161.13,0.00012992,2]
[401293459,1768113951068,168.91,0.00013634,2]
[401293569,1768114231982,-150.0,0.000162,2]
[401293570,1768114231996,-150.00000001,0.000162,2]
[401293571,1768114232006,-269.19244789,0.000162,2]
[401293572,1768114232016,-150.0,0.000162,2]
[401293573,1768114232027,-150.0,0.000162,2]
[401293574,1768114232038,-186.56506564,0.000168,5]
[401293575,1768114232111,-5345.43493436,0.000168,5]
[401293576,1768114232122,-151.28,0.00016864,2]
[401293577,1768114232131,-200.0,0.00016968,2]
[401293578,1768114232141,-972.68658283,0.00017,2]
[401293579,1768114232152,-27.31341717,0.00017,2]
[401293580,1768114232162,-168.39,0.00017042,2]
[401293581,1768114232171,-679.124,0.0001711,2]
[401293582,1768114232185,-151.0,0.00017176,2]
[401293583,1768114232195,-151.0,0.00017176,2]
[401293584,1768114232207,-118.37862998,0.00017208,2]
[401293587,1768114232240,-42.75137002,0.00017208,2]
[401293589,1768114232250,-351.59,0.00017318,2]
[401293591,1768114232259,-579.65862998,0.00017359,2]
[401293596,1768114238071,-1921.15877002,0.00017359,2]
[401293597,1768114238083,-929.3769,0.00017359,2]
[401293598,1768114238096,-154.90064362,0.00017448,2]
[401293599,1768114238107,-442.98081506,0.00017458,2]
[401293600,1768114238118,-162.63,0.00017499,2]
[401293601,1768114238128,-220.89751557,0.00017726,2]
[401293602,1768114238139,-150.0,0.00017726,2]
[401293603,1768114238150,-152.90134207,0.00017726,2]
[401293604,1768114238160,-169.89291337,0.000179,2]
[401293605,1768114238170,-8240.20521399,0.000179,2]
[401293606,1768114238191,-1759.79478601,0.000179,2]
[401293607,1768114238200,-383.73032144,0.000179,3]
[401293608,1768114238210,-2888.31501254,0.000179,2]
[401293609,1768114238220,-241.22129038,0.000179,2]
[401293610,1768114238229,-351.59,0.00017968,2]
[401293611,1768114238239,-500.0,0.00017973,2]
[401293612,1768114238249,-227.26396522,0.00017973,2]
[401293613,1768114238278,-150.0,0.00017973,2]
[401293614,1768114238288,-168.39,0.00017989,2]
[401293615,1768114238298,-500.0,0.00017989,2]
[401293616,1768114238308,-500.0,0.00017989,2]
[401293617,1768114238318,-1000.0,0.00017989,2]
[401293618,1768114238330,-500.0,0.00017989,2]
[401293619,1768114238342,-757.80438367,0.00017989,2]
[401293620,1768114238352,-500.0,0.00017989,2]
[401293621,1768114238362,-500.0,0.00017989,2]
[401293622,1768114238371,-500.0,0.00017989,2]
[401293623,1768114238381,-105.32322169,0.00017989,2]
[401293624,1768114238393,-394.67677831,0.00017989,2]
[401293625,1768114238403,-500.0,0.00017989,2]
[401293626,1768114238412,-500.0,0.00017989,2]
[401293627,1768114238422,-500.0,0.00017989,2]
[401293628,1768114238432,-500.0,0.00017989,2]
[401293629,1768114238442,-500.0,0.00017989,2]
[401293630,1768114238451,-250.0,0.00017989,2]
[401293631,1768114238462,-250.59042654,0.00017989,2]
[401293632,1768114238472,-173.79794354,0.0001799,2]
[401293633,1768114238482,-173.79794354,0.0001799,2]
[401293634,1768114238492,-300.0,0.00017999,2]
[401293635,1768114238502,-666.0,0.00017999,2]
[401293636,1768114238511,-308.46096969,0.00017999,2]
[401293637,1768114238521,-300.0,0.00017999,2]
[401293639,1768114238531,-666.0,0.00017999,2]
[401293640,1768114238540,-300.0,0.00017999,2]
[401293641,1768114238550,-438.27608199,0.00017999,2]
[401293642,1768114238559,-500.0,0.00017999,2]
[401293643,1768114238569,-216.21147543,0.00017999,2]
[401293644,1768114238578,-369.53763456,0.00017999,2]
[401293645,1768114238588,-500.0,0.00017999,2]
[401293646,1768114238597,-526.84172012,0.00017999,2]
[401293647,1768114238607,-500.0,0.00017999,2]
[401293648,1768114238616,-500.0,0.00017999,2]
[401293649,1768114238626,-179.8776,0.00017999,2]
[401293650,1768114238637,-8166.0,0.00018,2]
[401293651,1768114238649,-17871.93142629,0.00018,2]
[401293652,1768114238662,-1364.2629872,0.00018,2]
[401293653,1768114238674,-1260.78888652,0.00018,2]
[401293654,1768114238687,-12233.33934785,0.00018,2]
[401293655,1768114238721,-722.14799494,0.00018,2]
[401293656,1768114238735,-1199.44426882,0.00018,2]
[401293657,1768114238750,-17814.0222797,0.00018,2]
[401293658,1768114238762,-895.5214939,0.00018,2]
[401293659,1768114238773,-639.249306,0.00018,2]
[401293660,1768114238784,-253.4450449,0.00018,2]
[401293661,1768114240370,-318.9640355,0.00018,2]
[401293662,1768114240469,-2895660.01422612,0.00018,2]
[401293668,1768114245054,-332.84116034,0.00018,2]
[401293669,1768114245227,-380.05252024,0.00018,2]
[401293670,1768114246021,-1876.8110829,0.00018,2]
[401293671,1768114246033,-2036.44175731,0.00018,2]
[401293672,1768114246253,-505.76967517,0.00018,2]
[401293783,1768114987296,500.0,0.000145,3]
[401293977,1768115309669,600.0,0.000145,3]
[401294031,1768115432239,-291.65158265,0.00016698,2]
[401294050,1768115438241,-208.34841735,0.00016698,2]
[401294051,1768115438252,-1000.0,0.00016749,2]
[401294052,1768115438262,-200.0,0.00016749,2]
[401294053,1768115438272,-2906.53844192,0.00016795,2]
[401294054,1768115438302,-432.19723518,0.00016795,2]
[401294055,1768115438313,-6894.95,0.00016795,2]
[401294056,1768115438475,-2614.5143229,0.00016795,2]
[401294057,1768115438484,-894.47643319,0.00016865,2]
[401294260,1768115440523,-282.1157751,0.00016865,2]
[401294262,1768115440536,-355.44638727,0.00016865,2]
[401294265,1768115440551,-2490.84983884,0.00016865,2]
[401294267,1768115440560,-253.56,0.00016866,2]
[401294269,1768115440570,-150.0,0.00016923,2]
[401294271,1768115440579,-1500.0,0.00016942,2]
[401294272,1768115440588,-2054.74,0.00016986,2]
[401294275,1768115440598,-543.299,0.00017012,2]
[401294277,1768115440608,-999.0,0.0001708,3]
[401294278,1768115440617,-5501.9468,0.00017258,2]
[401294281,1768115440627,-500.0,0.00017358,2]
[401294283,1768115440637,-500.0,0.00017358,2]
[401294285,1768115440647,-500.0,0.00017358,2]
[401294287,1768115440656,-589.73778153,0.00017358,2]
[401294289,1768115440666,-500.0,0.00017358,2]
[401294291,1768115440675,-500.0,0.00017358,2]